Cogmind - Beta 10.2 @@@ ROGUE MODE // 2020.12.02 @ 02:05:04 Player: WeirdFoe Result: Self-destructed Performance ------------- Evolutions (1) 500 Regions Visited (3) 600 Robots Destroyed (6) 30 Value Destroyed (145) 145 Prototype IDs (0) 0 Alien Tech Used (0) 0 Bonus (0) 0 TOTAL SCORE: 1275 Bonus ------- None Cogmind --------- Core Integrity 385/400 Matter 163/300 Energy 265/265 System Corruption 0% Temperature Cool (0) Movement Walking (150) Ox1 Location -9/Materials Parts ------- > --- POWER (1) -------- Reinforced Ion Engine > --- PROPULSION (4) --- Aluminum Leg > --- UTILITY (2) ------ Small Storage Unit Light Armor Plating > --- WEAPON (2) ------- (None) > --- INVENTORY (6) ---- Ion Engine Weight Redist. System Peak State ------------ > --- POWER ------------ Reinforced Ion Engine > --- PROPULSION ------- Aluminum Leg Aluminum Leg > --- UTILITY ---------- Targeting Computer Light Armor Plating > --- WEAPON ----------- Medium Laser Slug Cannon > --- INVENTORY -------- Ion Engine Reinforced Ion Engine Small Storage Unit Light Armor Plating [Rating: 11] Favorites ----------- Power Reinforced Ion Engine Engine Reinforced Ion Engine Propulsion Aluminum Leg Leg Aluminum Leg Utility Targeting Computer Storage Small Storage Unit Processor Targeting Computer Protection Light Armor Plating Weapon Medium Laser Energy Gun Medium Laser Ballistic Cannon Slug Cannon Build | -11 -10 -10 -9 ------- Run | Scr Mat Min Mat Slots Evolved 2 | . . . 2 Power . | . . . . Propulsion 2 | . . . 2 Utility . | . . . . Weapon . | . . . . Parts Attached 17 | 7 5 3 2 Power 3 | 1 1 1 . Engine 3 | 1 1 1 . Core . | . . . . Reactor . | . . . . Propulsion 3 | 2 . 1 . Treads . | . . . . Leg 3 | 2 . 1 . Wheel . | . . . . Hover . | . . . . Flight . | . . . . Utility 5 | 1 2 . 2 Device . | . . . . Storage 2 | 1 . . 1 Processor 1 | . 1 . . Hackware . | . . . . Protection 2 | . 1 . 1 Artifact . | . . . . Weapon 6 | 3 2 1 . Energy Gun 5 | 3 2 . . Energy Cannon . | . . . . Ballistic Gun . | . . . . Ballistic Cannon 1 | . . 1 . Launcher . | . . . . Special Weapon . | . . . . Impact Weapon . | . . . . Slashing Weapon . | . . . . Piercing Weapon . | . . . . Special Melee Weapon . | . . . . Unidentified Prototypes . | . . . . Parts Lost . | . . . . Power . | . . . . Propulsion . | . . . . Utility . | . . . . Weapon . | . . . . Highest Loss Streak . | . . . . Average Slot Usage (%) 84 | . 90 94 48 Engine 13 | . 14 14 11 Leg 23 | . 28 25 11 Storage 4 | . 11 . 3 Processor 10 | . 6 14 6 Protection 9 | . 2 14 9 Energy Gun 19 | . 27 19 6 Ballistic Cannon 3 | . . 6 . Naked Turns . | . . . . Heaviest Build 22 | 10 17 22 17 Greatest Support 20 | 20 20 20 10 Greatest Overweight (x) 2 | . . 2 1 Average Overweight (x) . | . . . 1 Largest Inventory Capacity 6 | 6 6 4 6 Average Capacity 4 | 5 5 4 4 Most Carried 4 | 4 4 4 3 Average Carried 2 | 1 2 3 2 Final Capacity 6 | 6 4 4 6 Final Carried 4 | 2 4 3 2 Class Distribution -------------------- 100% | Mutant Dominant Class ---------------- Mutant | -10/Materials Mutant | -10/Mines Mutant | -9/Materials Resources | -11 -10 -10 -9 ----------- Run | Scr Mat Min Mat Matter Collected 310 | 215 . 95 . Remotely . | . . . . Salvage Created 117 | . . 117 . Parts 7 | . . 7 . Haulers Intercepted . | . . . . Recyclers Shooed . | . . . . Parts Field Recycled . | . . . . Retrieved Matter . | . . . . Parts Self-Destructed . | . . . . Prevented . | . . . . Kills | -11 -10 -10 -9 ------- Run | Scr Mat Min Mat Combat Hostiles Destroyed 6 | . . 6 . Guns 4 | . . 4 . Cannons 2 | . . 2 . Classes Destroyed 2 | . . 2 . Swarmer 3 | . . 3 . Grunt 3 | . . 3 . Best Kill Streak 3 | . . 3 . Combat Bots Only 3 | . . 3 . Max Kills in Single Turn 1 | . . 1 . Gunslinging . | . . . . Exploded . | . . . . Melee . | . . . . Uniques/NPCs Destroyed . | . . . . Combat | -11 -10 -10 -9 -------- Run | Scr Mat Min Mat Damage Taken 357 | . . 318 39 Core 93 | . . 78 15 Absorbed by Shields . | . . . . Core Remaining (%) 84 | 100 . 68 . Volleys Fired 16 | . . 16 . Largest 2 | . . 2 . Hottest 100 | . . 100 . Shots Fired 28 | . . 28 . Gun 21 | . . 21 . Cannon 7 | . . 7 . Launcher . | . . . . Special . | . . . . Kinetic 7 | . . 7 . Thermal 21 | . . 21 . Explosive . | . . . . Electromagnetic . | . . . . Robot Hit Streak 10 | . . 10 . Robot Miss Streak 2 | . . 2 . Penetration Max . | . . . . Secondary Targets . | . . . . Shots Hit Robots 17 | . . 17 . Core Hits 8 | . . 8 . Critical Hits . | . . . . Critical Kills . | . . . . Critical Parts Destroyed . | . . . . Melee Attacks . | . . . . Impact . | . . . . Slashing . | . . . . Piercing . | . . . . Sneak Attacks . | . . . . Combat Hostiles . | . . . . Follow-up Attacks . | . . . . Damage Inflicted 368 | . . 368 . Guns 163 | . . 163 . Cannons 203 | . . 203 . Explosions . | . . . . Melee . | . . . . Ramming 2 | . . 2 . Kinetic 203 | . . 203 . Thermal 163 | . . 163 . Explosive . | . . . . Electromagnetic . | . . . . Impact . | . . . . Slashing . | . . . . Piercing . | . . . . Highest Corruption 1 | . 1 1 . Average Corruption 1 | . 1 1 . Corruption Purged . | . . . . Effects 2 | . . 2 . Message Errors 1 | . . 1 . Data Loss (minor) 1 | . . 1 . Overload Shots . | . . . . Overflow Damage 7 | . . 7 . Projectiles 7 | . . 7 . Explosions . | . . . . Melee . | . . . . Knockbacks 1 | . . 1 . Impact . | . . . . Kinetic 1 | . . 1 . Secondary . | . . . . Self-Inflicted Damage 1 | . . 1 . Shots . | . . . . Rammed 1 | . . 1 . Targets Rammed 1 | . . 1 . Kicked . | . . . . Crushed . | . . . . Highest Temperature 431 | . . 431 . Average Temperature 183 | . . 183 . Received Heat Transfer 126 | . . 117 9 Effects 4 | . . 4 . Matter Decay 1 | . . 1 . Short Circuit 3 | . . 3 . Siege Activations . | . . . . Robots Corrupted . | . . . . Combat Hostiles . | . . . . Parts Fried . | . . . . Impact Corruptions . | . . . . Robots Melted . | . . . . Combat Hostiles . | . . . . Parts Melted . | . . . . Heat Transferred 481 | . . 481 . Parts Sabotaged . | . . . . Parts Stolen . | . . . . Parts Stripped . | . . . . Power Chain Reactions . | . . . . Missiles Intercepted . | . . . . Alert | -11 -10 -10 -9 ------- Run | Scr Mat Min Mat Peak Influence 175 | . 15 175 113 Initial 68 | . . 5 68 Average 67 | . 6 119 79 Maximum Alert Level . | . . . . Low Security (%) 100 | 100 100 100 100 Level 1 . | . . . . Level 2 . | . . . . Level 3 . | . . . . Level 4 . | . . . . Level 5 . | . . . . High Security . | . . . . Max Security . | . . . . Squads Dispatched 1 | . . . 1 Investigation . | . . . . Extermination . | . . . . Reinforcement 1 | . . . 1 Assault . | . . . . Garrison . | . . . . Intercept . | . . . . Construction Impeded . | . . . . Haulers Reinforced . | . . . . Stealth | -11 -10 -10 -9 --------- Run | Scr Mat Min Mat Distress Signals 2 | . . . 2 Communications Jammed . | . . . . Distress Signals . | . . . . Times Spotted 18 | . 1 7 10 Peak Tracking Total 9 | . 1 3 9 Tactical Retreats 2 | . . 1 1 Traps | -11 -10 -10 -9 ------- Run | Scr Mat Min Mat Traps Triggered 2 | . 1 . 1 Indirectly . | . . . . Trap Hack Attempts . | . . . . Triggered . | . . . . Disarmed . | . . . . Reprogrammed . | . . . . Reused . | . . . . Traps Extracted . | . . . . Installed . | . . . . Triggered . | . . . . Machines | -11 -10 -10 -9 ---------- Run | Scr Mat Min Mat Machines Disabled . | . . . . Max in Single Turn . | . . . . Machines Sabotaged . | . . . . Garrisons Compromised . | . . . . Overloaded Fab Kills . | . . . . Fab Network Shutdowns . | . . . . Hacking | -11 -10 -10 -9 --------- Run | Scr Mat Min Mat Machines Accessed 1 | . 1 . . Terminals 1 | . 1 . . Fabricators . | . . . . Repair Stations . | . . . . Recycling Units . | . . . . Scanalyzers . | . . . . Garrison Access . | . . . . Total Hacks 1 | . 1 . . Successful 1 | . 1 . . Failed . | . . . . Catastrophic . | . . . . Database Lockouts . | . . . . Manual . | . . . . Terminals 1 | . 1 . . Fabricators . | . . . . Repair Stations . | . . . . Recycling Units . | . . . . Scanalyzers . | . . . . Garrison Access . | . . . . Terminal Hacks 1 | . 1 . . Dispatch Records 1 | . 1 . . Fabricator Hacks . | . . . . Repair Station Hacks . | . . . . Recycling Unit Hacks . | . . . . Scanalyzer . | . . . . Garrison Access Hacks . | . . . . Unauthorized Hacks . | . . . . Terminals . | . . . . Fabricators . | . . . . Repair Stations . | . . . . Recycling Units . | . . . . Scanalyzers . | . . . . Garrison Access . | . . . . Data Cores Recovered . | . . . . Used . | . . . . Hacking Detections . | . . . . Full Trace Events . | . . . . Feedback Events . | . . . . Feedback Blocked . | . . . . Robot Schematics Acquired . | . . . . Robots Built . | . . . . Matter . | . . . . Time . | . . . . Total Robot Build Rating . | . . . . Part Schematics Acquired . | . . . . Parts Built . | . . . . Matter . | . . . . Time . | . . . . Total Part Build Rating . | . . . . Parts Repaired . | . . . . Time . | . . . . Parts Recycled . | . . . . Recycled Matter . | . . . . Retrieved Matter . | . . . . Retrieved Components . | . . . . Parts Scanalyzed . | . . . . Part Schematics Acquired . | . . . . Parts Damaged . | . . . . Bothacking | -11 -10 -10 -9 ------------ Run | Scr Mat Min Mat Used RIF Installer . | . . . . Robots Hacked . | . . . . Non-combat . | . . . . Combat . | . . . . Robot Hacks Applied . | . . . . Relay Couplers Released . | . . . . Robots Rewired . | . . . . Allies Hacked . | . . . . Hacks Repelled . | . . . . Allies | -11 -10 -10 -9 -------- Run | Scr Mat Min Mat Total Allies . | . . . . Largest Group . | . . . . Highest-Rated Group . | . . . . Highest-Rated Ally . | . . . . Total Orders . | . . . . Ally Attacks . | . . . . Total Damage . | . . . . Kills . | . . . . Allies Corrupted . | . . . . Allies Melted . | . . . . Intel | -11 -10 -10 -9 ------- Run | Scr Mat Min Mat Robot Analysis Total . | . . . . Derelict Logs Recovered . | . . . . Drone Launches . | . . . . Drone Recoveries . | . . . . Exploration | -11 -10 -10 -9 ------------- Run | Scr Mat Min Mat Turns Passed 570 | 66 159 251 94 Spaces Moved 361 | 43 116 142 60 Core 10 | 10 . . . Treads . | . . . . Legs 351 | 33 116 142 60 Wheels . | . . . . Hover . | . . . . Flight . | . . . . Fastest Speed 50 | 50 120 120 150 Average Speed 130 | 103 120 139 150 Slowest Speed 180 | 120 120 180 150 Overloaded Moves . | . . . . Propulsion Burnouts . | . . . . Robots Hopped . | . . . . Cave-ins Triggered . | . . . . Exploration Rate (%) 17 | 5 27 29 10 Regions Visited 3 Branch Regions 1 Pre-discovered Areas . | . . . . Known Exits Taken . | . . . . Unknown Exits Taken 3 | 1 1 1 . Scrap Searched . | . . . . Spaces Dug . | . . . . Terrain Destroyed 1 | . . 1 . Melee . | . . . . Projectile 1 | . . 1 . AOE . | . . . . Terrain Rammed . | . . . . Walls Destroyed . | . . . . Machines Disabled . | . . . . Actions | -11 -10 -10 -9 --------- Run | Scr Mat Min Mat Total 434 | 63 138 169 64 Wait 18 | 7 7 3 1 Move 358 | 42 115 141 60 Hop . | . . . . Pick Up 15 | 7 7 . 1 Fast Attach 2 | 1 . 1 . Attach 13 | 5 5 1 2 Detach . | . . . . Swap 2 | 1 . 1 . Drop 9 | . 4 5 . Fire 16 | . . 16 . Melee . | . . . . Ram . | . . . . Kick 1 | . . 1 . Crush . | . . . . Escape Stasis . | . . . . Rewire . | . . . . Trap . | . . . . Miscellaneous . | . . . . Route ------- -11/Scrapyard -10/Materials -10/Mines -9/Materials History --------- Turn | Location | Event 4 | -11/Scrapyard | Discovered new exit (range 15) 67 | -11/Scrapyard | Entered Materials 176 | -10/Materials | Discovered new exit (range 10) 226 | -10/Materials | Entered Mines 308 | -10/Mines | A weapon hastily lodged in a ceiling crevice suddenly fell to the ground 332 | -10/Mines | Build established: Mutant 461 | -10/Mines | Discovered new exit (range 12) 477 | -10/Mines | Entered Materials 477 | -9/Materials | Evolved 2 slots: Propulsion x2 571 | -9/Materials | Self-destructed Last Messages --------------- 00441_ K-01 Serf collects debris. 00441_ Dropped Broken Rnf. Ion Engine. 00461_ EXIT=FOUND PARAMETERS=PROPULSION_2 LOCATION=UNKNOWN GOAL=ESCAPE 00538_ K-01 Serf collects debris. 00538_ Triggered Blade Trap. 00538_ Massive razor-sharp blades shoot up from within the floor. 00538_ Med. Laser severed. 00538_ Lgt. Armor Plating severed. 00538_ Targeting Computer severed. 00542_ K-01 Serf collects debris. 00544_ U-05 Engineer lays Concrete. 00548_ K-01 Serf collects debris. 00550_ O-16 Technician: "IFF HANDSHAKE FAILED. SECURING TERMINAL." 00557_ ALERT: Hostiles spotted, dispatching reinforcements to Terminal M002. 00560_ Acquired Unknown Device. 00569_ W-16 Scout sends out distress signal. Map ----- +----------------------------------------------------+ | | | | | | | ?????????????????????????????????????????????????? | | ?????????????????????????????????????????????????? | | ?????????????????????????????????????????????????? | | ?????????????????????????????????????????????????? | | #####????????????????????????????????????????????? | | #????????????????????????????????????????????? | | #????????????????????????????????????????????? | | #????????????????????????????????????????????? | | #????????????????????????????????????????????? | | #????????????????????????????????????????????? | | #??????#######???????????????????????????????? | | #+########## #???????????????????????????????? | | #???????????????????????????????? | | #???????????????????????????????? | | #???????????????????????????????? | | ############ #???????????????????????????????? | | ???????????## ##???????????????????????????????? | | ????????????# #????????????????????????????????? | | ????????????# #????????????????????#???????????? | | ????????????# ##########?????###g #???????????? | | ????????????# # #??? sss #???????????? | | ????????????# # """ ## #???????????? | | ????????????# # """ @ w #???????????? | | ????????????# # u""" ## ####???????????????? | | ????????????# # """g #??? #??????????????????? | | ????????????# # g #???????????????????????? | | ????????????# #####+##### #??????????????????? | | ????????????# [! ?????????????? | | ????????????# #??????????????????? | | ????????????#^ #??????????????????? | | ????????????# ########??????????????????? | | ????????????# """ #?????????????????????????? | | ????????????# """ "#?????????????????????????? | | ????????????+ """ T#?????????????????????????? | | ????????????# "#?????????????????????????? | | ????????????# +?????????????????????????? | | ????????????# #?????????????????????????? | | ????????????# ##### ##?????????????????????????? | | ????????????# ????? #??????????????????????????? | | ????????????# ?????+#??????????????????????????? | | ????????????# ?????????????????????????????????? | | ????????????# ?????????????????????????????????? | | ????????????? ?????????????????????????????????? | | ?????????????????????????????????????????????????? | | ?????????????????????????????????????????????????? | | ?????????????????????????????????????????????????? | | ?????????????????????????????????????????????????? | +----------------------------------------------------+ Best States ------------- Heat Dissipation 28 Energy Generation 12 Energy Capacity 265 Matter Stores 245 Matter Capacity 300 Sight Range 16 Terrain Scan Density 10 Armor Coverage 150 Evasion (%) 50 Targeting Accuracy 5 Item Schematics ----------------- None Robot Schematics ------------------ None Fabricated ------------ Nothing Alien Tech Used ----------------- None Achievements -------------- None Challenges ------------ None Game ------ Seed ThermalArmorArmor Manual? 0 Play Time 00:12:32 Cumulative 8.5 hours Start 2020.12.02 @ 01:52:45 End 2020.12.02 @ 02:05:04 Sessions 1 Manual Loads 0 Difficulty Rogue Special Mode None Game No. 34 Rogue 34 Adventurer 0 Explorer 0 Win Type - Total 0 Types 0/0/0/0/0/0/0/0/0 Lore% 8 Gallery% 15 Achievement% 10 Wizard Run 0 Options --------- ASCII 0 Keyboard 0 Movement Mouse Keybinds 0 Fullscreen 2 Font 18/X11Bold Map View 76x50 Tactical HUD 1 Map Filters NONE Filters NONE Steam 1 RUN: a04a2761-b988-4372-867f-91226d5050dc